[Event "Titled Tuesday Blitz May 10 Late 2022"]
[White "Papp, Levente"]
[Black "Babazada, Khazar"]
[WhiteFideId "751243"]
[BlackFideId "13413554"]
[WhiteElo "2308"]
[BlackElo "2406"]
[Result "0-1"]
[Round "04"]
[TimeControl "180+1"]
[Date "2022.05.10"]
[WhiteClock "0:00:02"]
[BlackClock "0:00:04"]

1. Nf3 {[%clk 0:03:00]}  d5 {[%clk 0:02:56]} 2. g3 {[%clk 0:03:01]}  Nf6 {[%clk 0:02:54]} 3. Bg2 {[%clk 0:03:01]}  g6 {[%clk 0:02:54]} 4. O-O {[%clk 0:03:01]}  Bg7 {[%clk 0:02:52]} 5. c4 {[%clk 0:03:01]}  O-O {[%clk 0:02:53]} 6. cxd5 {[%clk 0:03:00]}  Nxd5 {[%clk 0:02:54]} 7. Nc3 {[%clk 0:03:00]}  Nb6 {[%clk 0:02:53]} 8. d4 {[%clk 0:02:59]}  Nc6 {[%clk 0:02:46]} 9. d5 {[%clk 0:02:58]}  Na5 {[%clk 0:02:46]} 10. e4 {[%clk 0:02:58]}  c6 {[%clk 0:02:44]} 11. Qe1 {[%clk 0:02:43]}  Bg4 {[%clk 0:02:37]} 12. Nd2 {[%clk 0:02:30]}  cxd5 {[%clk 0:02:36]} 13. exd5 {[%clk 0:02:30]}  Qd7 {[%clk 0:02:29]} 14. Nb3 {[%clk 0:02:24]}  Nxb3 {[%clk 0:02:23]} 15. axb3 {[%clk 0:02:25]}  Rfe8 {[%clk 0:02:11]} 16. Ra5 {[%clk 0:01:50]}  Bh3 {[%clk 0:01:56]} 17. Qe4 {[%clk 0:01:49]}  Bxg2 {[%clk 0:01:53]} 18. Kxg2 {[%clk 0:01:49]}  Nc8 {[%clk 0:01:50]} 19. Bf4 {[%clk 0:01:45]}  Nd6 {[%clk 0:01:50]} 20. Bxd6 {[%clk 0:01:45]}  exd6 {[%clk 0:01:51]} 21. Qd3 {[%clk 0:01:42]}  a6 {[%clk 0:01:50]} 22. Raa1 {[%clk 0:01:39]}  Rac8 {[%clk 0:01:49]} 23. Rfe1 {[%clk 0:01:35]}  h5 {[%clk 0:01:42]} 24. h4 {[%clk 0:01:34]}  Re5 {[%clk 0:01:40]} 25. Rxe5 {[%clk 0:01:33]}  Bxe5 {[%clk 0:01:41]} 26. Re1 {[%clk 0:01:28]}  Qc7 {[%clk 0:01:41]} 27. Ne4 {[%clk 0:01:22]}  Qc2 {[%clk 0:01:36]} 28. Qf3 {[%clk 0:01:19]}  Qxb2 {[%clk 0:01:31]} 29. g4 {[%clk 0:01:14]}  Rf8 {[%clk 0:00:49]} 30. gxh5 {[%clk 0:01:08]}  Kg7 {[%clk 0:00:49]} 31. Ng5 {[%clk 0:01:03]}  Qd4 {[%clk 0:00:41]} 32. Rh1 {[%clk 0:00:42]}  Bf6 {[%clk 0:00:35]} 33. hxg6 {[%clk 0:00:41]}  Bxg5 {[%clk 0:00:35]} 34. hxg5 {[%clk 0:00:40]}  fxg6 {[%clk 0:00:35]} 35. Rh7+ {[%clk 0:00:35]}  Kxh7 {[%clk 0:00:33]} 36. Qxf8 {[%clk 0:00:35]}  Qxd5+ {[%clk 0:00:32]} 37. Kh2 {[%clk 0:00:29]}  Qxg5 {[%clk 0:00:31]} 38. Qxd6 {[%clk 0:00:27]}  Qb5 {[%clk 0:00:25]} 39. Qe7+ {[%clk 0:00:27]}  Kh6 {[%clk 0:00:25]} 40. Qf8+ {[%clk 0:00:27]}  Kg5 {[%clk 0:00:22]} 41. Qe7+ {[%clk 0:00:18]}  Kg4 {[%clk 0:00:19]} 42. Qe4+ {[%clk 0:00:18]}  Kh5 {[%clk 0:00:18]} 43. Qf3+ {[%clk 0:00:18]}  Kg5 {[%clk 0:00:17]} 44. Qe3+ {[%clk 0:00:18]}  Kf6 {[%clk 0:00:16]} 45. f4 {[%clk 0:00:17]}  Qd5 {[%clk 0:00:14]} 46. Kg3 {[%clk 0:00:15]}  g5 {[%clk 0:00:12]} 47. Qc3+ {[%clk 0:00:14]}  Kg6 {[%clk 0:00:09]} 48. Qc2+ {[%clk 0:00:14]}  Qf5 {[%clk 0:00:08]} 49. Qd1 {[%clk 0:00:04]}  Qxf4+ {[%clk 0:00:08]} 50. Kg2 {[%clk 0:00:05]}  g4 {[%clk 0:00:07]} 51. Qd3+ {[%clk 0:00:04]}  Kf6 {[%clk 0:00:05]} 52. Qc3+ {[%clk 0:00:03]}  Qe5 {[%clk 0:00:05]} 53. Qc2 {[%clk 0:00:03]}  Qd5+ {[%clk 0:00:05]} 54. Kg3 {[%clk 0:00:03]}  Qf3+ {[%clk 0:00:05]} 55. Kh2 {[%clk 0:00:04]}  g3+ {[%clk 0:00:06]} 56. Kh3 {[%clk 0:00:04]}  g2+ {[%clk 0:00:04]} 57. Kh2 {[%clk 0:00:04]}  Qf1 {[%clk 0:00:03]} 58. Qc3+ {[%clk 0:00:04]}  Kf5 {[%clk 0:00:03]} 59. Qc8+ {[%clk 0:00:02]}  Ke5 {[%clk 0:00:03]} 60. Qe8+ {[%clk 0:00:03]}  Kd4 {[%clk 0:00:04]} 61. Qd7+ {[%clk 0:00:03]}  Kc3 {[%clk 0:00:04]} 62. Qg7+ {[%clk 0:00:03]}  Kc2 {[%clk 0:00:04]} 63. Qc7+ {[%clk 0:00:03]}  Kb2 {[%clk 0:00:05]} 64. Qe5+ {[%clk 0:00:03]}  Ka2 {[%clk 0:00:04]} 65. Qa5+ {[%clk 0:00:03]}  Kb1 {[%clk 0:00:04]} 66. Qc5 {[%clk 0:00:02]}  Qh1+ {[%clk 0:00:04]} 0-1


[Site "https://www.chess.com"]

[Event "Titled Tuesday Blitz May 10 Late 2022"]
[White "Perez Molina, Robinson"]
[Black "Petre, Nad-Titus"]
[WhiteFideId "3403882"]
[BlackFideId "1204165"]
[WhiteElo "2410"]
[BlackElo "2541"]
[Result "1-0"]
[Round "04"]
[TimeControl "180+1"]
[Date "2022.05.11"]
[WhiteClock "0:00:10"]
[BlackClock "0:00:12"]

1. Nf3 {[%clk 0:03:00]}  d6 {[%clk 0:02:55]} 2. c4 {[%clk 0:02:59]}  e5 {[%clk 0:02:53]} 3. Nc3 {[%clk 0:02:59]}  f5 {[%clk 0:02:49]} 4. d4 {[%clk 0:02:59]}  e4 {[%clk 0:02:49]} 5. Ng5 {[%clk 0:03:00]}  Be7 {[%clk 0:02:46]} 6. Nh3 {[%clk 0:03:01]}  c6 {[%clk 0:02:47]} 7. g3 {[%clk 0:03:00]}  Na6 {[%clk 0:02:44]} 8. Bg2 {[%clk 0:02:59]}  Nf6 {[%clk 0:02:44]} 9. O-O {[%clk 0:02:58]}  O-O {[%clk 0:02:44]} 10. Rb1 {[%clk 0:02:58]}  Nc7 {[%clk 0:02:41]} 11. f3 {[%clk 0:02:51]}  d5 {[%clk 0:02:35]} 12. c5 {[%clk 0:02:51]}  b5 {[%clk 0:02:17]} 13. cxb6 {[%clk 0:02:37]}  axb6 {[%clk 0:02:15]} 14. b4 {[%clk 0:02:37]}  b5 {[%clk 0:02:08]} 15. Qc2 {[%clk 0:02:21]}  Nce8 {[%clk 0:01:54]} 16. Bf4 {[%clk 0:02:15]}  Bd6 {[%clk 0:01:46]} 17. Be5 {[%clk 0:01:57]}  Nd7 {[%clk 0:01:40]} 18. f4 {[%clk 0:01:52]}  Nb6 {[%clk 0:01:33]} 19. Rfc1 {[%clk 0:01:30]}  Be6 {[%clk 0:01:30]} 20. Bf1 {[%clk 0:01:10]}  Nc4 {[%clk 0:01:30]} 21. Rb3 {[%clk 0:01:06]}  Bxe5 {[%clk 0:01:13]} 22. fxe5 {[%clk 0:01:05]}  Qb6 {[%clk 0:01:12]} 23. Qd1 {[%clk 0:01:03]}  Nc7 {[%clk 0:01:01]} 24. Kh1 {[%clk 0:01:00]}  h6 {[%clk 0:00:59]} 25. Ra1 {[%clk 0:00:53]}  g5 {[%clk 0:00:48]} 26. a4 {[%clk 0:00:51]}  f4 {[%clk 0:00:43]} 27. a5 {[%clk 0:00:48]}  Qb8 {[%clk 0:00:40]} 28. e3 {[%clk 0:00:32]}  Nxe3 {[%clk 0:00:36]} 29. Qh5 {[%clk 0:00:31]}  Nf5 {[%clk 0:00:22]} 30. Qg6+ {[%clk 0:00:26]}  Ng7 {[%clk 0:00:22]} 31. Qxh6 {[%clk 0:00:22]}  Bxh3 {[%clk 0:00:18]} 32. Bxh3 {[%clk 0:00:22]}  f3 {[%clk 0:00:19]} 33. Nd1 {[%clk 0:00:17]}  Qd8 {[%clk 0:00:17]} 34. Ne3 {[%clk 0:00:15]}  Qe7 {[%clk 0:00:17]} 35. Rf1 {[%clk 0:00:14]}  Nce6 {[%clk 0:00:15]} 36. Ng4 {[%clk 0:00:12]}  Qf7 {[%clk 0:00:10]} 37. Nf6+ {[%clk 0:00:12]}  Qxf6 {[%clk 0:00:10]} 38. exf6 {[%clk 0:00:12]}  Rf7 {[%clk 0:00:10]} 39. Bxe6 {[%clk 0:00:11]}  Nxe6 {[%clk 0:00:10]} 40. Qg6+ {[%clk 0:00:12]}  Kf8 {[%clk 0:00:10]} 41. Rc3 {[%clk 0:00:10]}  Ke8 {[%clk 0:00:11]} 42. Rxc6 {[%clk 0:00:10]}  e3 {[%clk 0:00:11]} 43. Rxe6+ {[%clk 0:00:10]}  Kd7 {[%clk 0:00:11]} 44. Qxf7+ {[%clk 0:00:10]}  Kc8 {[%clk 0:00:12]} 45. Re8# {[%clk 0:00:10]} 1-0


[Site "https://www.chess.com"]

[Event "Titled Tuesday Blitz May 10 Late 2022"]
[White "Petrova, Irina"]
[Black "Estrada Nieto, Julian"]
[WhiteFideId "14124122"]
[BlackFideId "5101018"]
[WhiteElo "1993"]
[BlackElo "2252"]
[Result "0-1"]
[Round "04"]
[TimeControl "180+1"]
[Date "2022.05.11"]
[WhiteClock "0:00:04"]
[BlackClock "0:00:06"]

1. e4 {[%clk 0:03:00]}  e5 {[%clk 0:02:59]} 2. Nf3 {[%clk 0:03:00]}  Nc6 {[%clk 0:02:59]} 3. Bb5 {[%clk 0:03:00]}  a6 {[%clk 0:02:58]} 4. Ba4 {[%clk 0:02:59]}  Nf6 {[%clk 0:02:59]} 5. d3 {[%clk 0:02:59]}  d6 {[%clk 0:02:58]} 6. c4 {[%clk 0:02:56]}  g6 {[%clk 0:02:56]} 7. Nc3 {[%clk 0:02:55]}  Bg7 {[%clk 0:02:56]} 8. Bg5 {[%clk 0:02:55]}  h6 {[%clk 0:02:54]} 9. Bh4 {[%clk 0:02:39]}  O-O {[%clk 0:02:52]} 10. Nd5 {[%clk 0:02:39]}  g5 {[%clk 0:02:48]} 11. Bg3 {[%clk 0:02:39]}  Bg4 {[%clk 0:02:11]} 12. h4 {[%clk 0:02:32]}  Nd4 {[%clk 0:02:07]} 13. hxg5 {[%clk 0:02:26]}  hxg5 {[%clk 0:02:07]} 14. Ne3 {[%clk 0:02:11]}  Bxf3 {[%clk 0:01:43]} 15. gxf3 {[%clk 0:02:12]}  b5 {[%clk 0:01:39]} 16. Bb3 {[%clk 0:02:11]}  c6 {[%clk 0:01:34]} 17. Nc2 {[%clk 0:02:08]}  Qa5+ {[%clk 0:01:08]} 18. Kf1 {[%clk 0:02:00]}  Ne6 {[%clk 0:00:52]} 19. Kg2 {[%clk 0:01:54]}  Nd7 {[%clk 0:00:46]} 20. cxb5 {[%clk 0:01:52]}  axb5 {[%clk 0:00:44]} 21. Bxe6 {[%clk 0:01:47]}  fxe6 {[%clk 0:00:44]} 22. Rh5 {[%clk 0:01:43]}  Qd8 {[%clk 0:00:41]} 23. Qd2 {[%clk 0:01:37]}  Qf6 {[%clk 0:00:35]} 24. Qxg5 {[%clk 0:01:13]}  Qxf3+ {[%clk 0:00:34]} 25. Kg1 {[%clk 0:01:13]}  Rf6 {[%clk 0:00:20]} 26. Ne3 {[%clk 0:01:01]}  Nf8 {[%clk 0:00:11]} 27. Ng4 {[%clk 0:00:57]}  Rg6 {[%clk 0:00:11]} 28. Qh4 {[%clk 0:00:15]}  Rxg4 {[%clk 0:00:11]} 29. Qh2 {[%clk 0:00:16]}  Ng6 {[%clk 0:00:10]} 30. Rf1 {[%clk 0:00:13]}  Rf8 {[%clk 0:00:09]} 31. Qg2 {[%clk 0:00:05]}  Qxg2+ {[%clk 0:00:09]} 32. Kxg2 {[%clk 0:00:06]}  Nf4+ {[%clk 0:00:09]} 33. Kf3 {[%clk 0:00:05]}  Nxh5+ {[%clk 0:00:09]} 34. Kxg4 {[%clk 0:00:05]}  Nf4 {[%clk 0:00:08]} 35. Bxf4 {[%clk 0:00:05]}  Rxf4+ {[%clk 0:00:08]} 36. Kg3 {[%clk 0:00:05]}  Kf7 {[%clk 0:00:09]} 37. Rh1 {[%clk 0:00:05]}  Kg6 {[%clk 0:00:09]} 38. Rh2 {[%clk 0:00:05]}  Rf8 {[%clk 0:00:09]} 39. Rh1 {[%clk 0:00:05]}  Rh8 {[%clk 0:00:09]} 40. Rc1 {[%clk 0:00:05]}  c5 {[%clk 0:00:08]} 41. a3 {[%clk 0:00:05]}  Bh6 {[%clk 0:00:08]} 42. Rc2 {[%clk 0:00:05]}  Bf4+ {[%clk 0:00:08]} 43. Kf3 {[%clk 0:00:05]}  Rh3+ {[%clk 0:00:08]} 44. Ke2 {[%clk 0:00:05]}  Rh1 {[%clk 0:00:09]} 45. b4 {[%clk 0:00:05]}  cxb4 {[%clk 0:00:08]} 46. axb4 {[%clk 0:00:06]}  Rb1 {[%clk 0:00:08]} 47. Rc6 {[%clk 0:00:06]}  Rb2+ {[%clk 0:00:07]} 48. Kf3 {[%clk 0:00:06]}  Rxb4 {[%clk 0:00:07]} 49. Rxd6 {[%clk 0:00:06]}  Kf6 {[%clk 0:00:07]} 50. Rb6 {[%clk 0:00:06]}  Rb3 {[%clk 0:00:08]} 51. Ke2 {[%clk 0:00:06]}  b4 {[%clk 0:00:08]} 52. Rb5 {[%clk 0:00:04]}  Rb2+ {[%clk 0:00:08]} 53. Kf3 {[%clk 0:00:04]}  Rb1 {[%clk 0:00:06]} 54. d4 {[%clk 0:00:04]}  b3 {[%clk 0:00:06]} 55. dxe5+ {[%clk 0:00:04]}  Bxe5 {[%clk 0:00:06]} 56. Ke3 {[%clk 0:00:03]}  b2 {[%clk 0:00:06]} 57. f4 {[%clk 0:00:04]}  Re1+ {[%clk 0:00:05]} 58. Kd2 {[%clk 0:00:03]}  b1=Q {[%clk 0:00:06]} 59. fxe5+ {[%clk 0:00:04]}  Kg5 {[%clk 0:00:06]} 0-1


[Site "https://www.chess.com"]

[Event "Titled Tuesday Blitz May 10 Late 2022"]
[White "Postny, Evgeny"]
[Black "Wachinger, Guenther"]
[WhiteFideId "2804344"]
[BlackFideId "4604261"]
[WhiteElo "2746"]
[BlackElo "2423"]
[Result "1-0"]
[Round "04"]
[TimeControl "180+1"]
[Date "2022.05.11"]
[WhiteClock "0:00:51"]
[BlackClock "0:00:20"]

1. e4 {[%clk 0:03:00]}  c5 {[%clk 0:02:58]} 2. Nf3 {[%clk 0:03:00]}  d6 {[%clk 0:02:54]} 3. d4 {[%clk 0:03:00]}  cxd4 {[%clk 0:02:55]} 4. Nxd4 {[%clk 0:02:59]}  Nf6 {[%clk 0:02:54]} 5. Nc3 {[%clk 0:03:00]}  g6 {[%clk 0:02:54]} 6. f4 {[%clk 0:02:58]}  Nc6 {[%clk 0:02:53]} 7. Nxc6 {[%clk 0:02:57]}  bxc6 {[%clk 0:02:53]} 8. e5 {[%clk 0:02:58]}  Nd7 {[%clk 0:02:53]} 9. exd6 {[%clk 0:02:58]}  exd6 {[%clk 0:02:52]} 10. Qd4 {[%clk 0:02:58]}  Qf6 {[%clk 0:02:51]} 11. Be3 {[%clk 0:02:51]}  Be7 {[%clk 0:02:41]} 12. O-O-O {[%clk 0:02:46]}  O-O {[%clk 0:02:40]} 13. Be2 {[%clk 0:02:40]}  Rb8 {[%clk 0:02:31]} 14. Bf3 {[%clk 0:02:35]}  d5 {[%clk 0:02:28]} 15. Qxf6 {[%clk 0:02:10]}  Bxf6 {[%clk 0:02:17]} 16. Bxa7 {[%clk 0:02:11]}  Ra8 {[%clk 0:02:14]} 17. Bd4 {[%clk 0:02:10]}  Bxd4 {[%clk 0:02:01]} 18. Rxd4 {[%clk 0:02:11]}  Nc5 {[%clk 0:01:57]} 19. g3 {[%clk 0:02:04]}  Ne6 {[%clk 0:01:52]} 20. Ra4 {[%clk 0:01:58]}  Bb7 {[%clk 0:01:50]} 21. Rxa8 {[%clk 0:01:54]}  Rxa8 {[%clk 0:01:51]} 22. Re1 {[%clk 0:01:51]}  d4 {[%clk 0:01:48]} 23. Ne4 {[%clk 0:01:45]}  Rxa2 {[%clk 0:01:48]} 24. Kb1 {[%clk 0:01:43]}  Ra5 {[%clk 0:01:42]} 25. Nd6 {[%clk 0:01:41]}  Ba8 {[%clk 0:01:37]} 26. Bg4 {[%clk 0:01:32]}  Nc7 {[%clk 0:00:50]} 27. Re7 {[%clk 0:01:25]}  Nb5 {[%clk 0:00:37]} 28. Nxf7 {[%clk 0:01:11]}  Kf8 {[%clk 0:00:34]} 29. Rd7 {[%clk 0:01:09]}  c5 {[%clk 0:00:33]} 30. Ng5 {[%clk 0:01:04]}  Ra7 {[%clk 0:00:23]} 31. Nxh7+ {[%clk 0:01:03]}  Kg8 {[%clk 0:00:21]} 32. Nf6+ {[%clk 0:01:04]}  Kf8 {[%clk 0:00:21]} 33. Rxa7 {[%clk 0:01:02]}  Nxa7 {[%clk 0:00:22]} 34. Nd7+ {[%clk 0:01:03]}  Ke7 {[%clk 0:00:23]} 35. Nxc5 {[%clk 0:01:03]}  Kd6 {[%clk 0:00:24]} 36. Nd3 {[%clk 0:01:02]}  Be4 {[%clk 0:00:24]} 37. Kc1 {[%clk 0:00:59]}  Nb5 {[%clk 0:00:23]} 38. Kd2 {[%clk 0:00:59]}  Nc7 {[%clk 0:00:24]} 39. Ne5 {[%clk 0:00:54]}  Nd5 {[%clk 0:00:22]} 40. Bf3 {[%clk 0:00:54]}  Bxf3 {[%clk 0:00:20]} 41. Nxf3 {[%clk 0:00:54]}  Ne3 {[%clk 0:00:21]} 42. Kd3 {[%clk 0:00:53]}  Nd1 {[%clk 0:00:20]} 43. Kxd4 {[%clk 0:00:51]}  Nxb2 {[%clk 0:00:20]} 44. Nh4 {[%clk 0:00:51]} 1-0


[Site "https://www.chess.com"]

[Event "Titled Tuesday Blitz May 10 Late 2022"]
[White "Prohorov, Olexandr"]
[Black "Romero Ruscalleda, Josep"]
[WhiteFideId "14105578"]
[BlackFideId "2231859"]
[WhiteElo "1993"]
[BlackElo "2302"]
[Result "1-0"]
[Round "04"]
[TimeControl "180+1"]
[Date "2022.05.11"]
[WhiteClock "0:02:23"]
[BlackClock "0:02:08"]

1. e4 {[%clk 0:03:00]}  g6 {[%clk 0:03:00]} 2. d4 {[%clk 0:02:59]}  Bg7 {[%clk 0:03:01]} 3. Nc3 {[%clk 0:02:58]}  d6 {[%clk 0:03:01]} 4. f4 {[%clk 0:02:59]}  a6 {[%clk 0:03:01]} 5. a4 {[%clk 0:02:58]}  Nc6 {[%clk 0:03:01]} 6. Nf3 {[%clk 0:02:57]}  Bg4 {[%clk 0:02:59]} 7. Be3 {[%clk 0:02:57]}  Nf6 {[%clk 0:02:55]} 8. e5 {[%clk 0:02:50]}  dxe5 {[%clk 0:02:51]} 9. fxe5 {[%clk 0:02:46]}  Nd5 {[%clk 0:02:47]} 10. Nxd5 {[%clk 0:02:33]}  Qxd5 {[%clk 0:02:47]} 11. Be2 {[%clk 0:02:34]}  O-O {[%clk 0:02:36]} 12. O-O {[%clk 0:02:33]}  Bf5 {[%clk 0:02:31]} 13. c3 {[%clk 0:02:30]}  Rad8 {[%clk 0:02:26]} 14. Nd2 {[%clk 0:02:27]}  f6 {[%clk 0:02:08]} 15. Bc4 {[%clk 0:02:23]} 1-0


[Site "https://www.chess.com"]

[Event "Titled Tuesday Blitz May 10 Late 2022"]
[White "Radovanovic, Mihajlo"]
[Black "Della Morte, German"]
[WhiteFideId "940313"]
[BlackFideId "113522"]
[WhiteElo "2394"]
[BlackElo "2363"]
[Result "1-0"]
[Round "04"]
[TimeControl "180+1"]
[Date "2022.05.10"]
[WhiteClock "0:00:04"]
[BlackClock "0:00:11"]

1. e4 {[%clk 0:02:57]}  Nc6 {[%clk 0:02:58]} 2. Nf3 {[%clk 0:02:54]}  d6 {[%clk 0:02:58]} 3. d4 {[%clk 0:02:54]}  Nf6 {[%clk 0:02:59]} 4. Nc3 {[%clk 0:02:54]}  g6 {[%clk 0:02:59]} 5. Be3 {[%clk 0:02:49]}  Bg7 {[%clk 0:02:58]} 6. h3 {[%clk 0:02:50]}  O-O {[%clk 0:02:57]} 7. Qd2 {[%clk 0:02:50]}  a6 {[%clk 0:02:57]} 8. Bh6 {[%clk 0:02:41]}  b5 {[%clk 0:02:57]} 9. Bd3 {[%clk 0:02:37]}  e5 {[%clk 0:02:36]} 10. d5 {[%clk 0:02:36]}  Nd4 {[%clk 0:02:28]} 11. Nxd4 {[%clk 0:02:32]}  exd4 {[%clk 0:02:29]} 12. Ne2 {[%clk 0:02:32]}  Re8 {[%clk 0:02:29]} 13. Bxg7 {[%clk 0:02:31]}  Kxg7 {[%clk 0:02:28]} 14. f3 {[%clk 0:02:29]}  c5 {[%clk 0:02:03]} 15. dxc6 {[%clk 0:02:27]}  d5 {[%clk 0:02:04]} 16. O-O-O {[%clk 0:02:15]}  Qb6 {[%clk 0:01:52]} 17. exd5 {[%clk 0:01:53]}  Nxd5 {[%clk 0:01:51]} 18. Be4 {[%clk 0:01:52]}  Ne3 {[%clk 0:01:51]} 19. Qxd4+ {[%clk 0:01:52]}  Qxd4 {[%clk 0:01:51]} 20. Rxd4 {[%clk 0:01:50]}  f5 {[%clk 0:01:39]} 21. Bd3 {[%clk 0:01:48]}  Nxg2 {[%clk 0:01:39]} 22. Rg1 {[%clk 0:01:20]}  Ne3 {[%clk 0:01:39]} 23. Nf4 {[%clk 0:01:17]}  Ra7 {[%clk 0:01:07]} 24. Kd2 {[%clk 0:01:04]}  Rae7 {[%clk 0:01:00]} 25. a4 {[%clk 0:00:57]}  Re5 {[%clk 0:00:50]} 26. axb5 {[%clk 0:00:53]}  axb5 {[%clk 0:00:50]} 27. h4 {[%clk 0:00:47]}  Kf6 {[%clk 0:00:42]} 28. Rb4 {[%clk 0:00:36]}  Rc5 {[%clk 0:00:24]} 29. Rxb5 {[%clk 0:00:28]}  Rxc6 {[%clk 0:00:21]} 30. Rb4 {[%clk 0:00:19]}  Rc7 {[%clk 0:00:09]} 31. Re1 {[%clk 0:00:18]}  Rce7 {[%clk 0:00:09]} 32. Rxe3 {[%clk 0:00:18]}  Rxe3 {[%clk 0:00:10]} 33. Nd5+ {[%clk 0:00:19]}  Kf7 {[%clk 0:00:11]} 34. Nxe3 {[%clk 0:00:20]}  Re7 {[%clk 0:00:11]} 35. Rd4 {[%clk 0:00:20]}  Kg7 {[%clk 0:00:11]} 36. Ng2 {[%clk 0:00:20]}  h6 {[%clk 0:00:11]} 37. b4 {[%clk 0:00:19]}  g5 {[%clk 0:00:12]} 38. hxg5 {[%clk 0:00:20]}  hxg5 {[%clk 0:00:12]} 39. b5 {[%clk 0:00:20]}  Kf6 {[%clk 0:00:13]} 40. b6 {[%clk 0:00:20]}  Bb7 {[%clk 0:00:13]} 41. Be2 {[%clk 0:00:17]}  g4 {[%clk 0:00:13]} 42. fxg4 {[%clk 0:00:14]}  Bxg2 {[%clk 0:00:12]} 43. gxf5 {[%clk 0:00:14]}  Kxf5 {[%clk 0:00:13]} 44. Bd3+ {[%clk 0:00:14]}  Ke5 {[%clk 0:00:13]} 45. Rd8 {[%clk 0:00:13]}  Rb7 {[%clk 0:00:13]} 46. Rg8 {[%clk 0:00:08]}  Bf3 {[%clk 0:00:13]} 47. Rg6 {[%clk 0:00:08]}  Bd5 {[%clk 0:00:12]} 48. c4 {[%clk 0:00:08]}  Be6 {[%clk 0:00:13]} 49. c5 {[%clk 0:00:07]}  Bd5 {[%clk 0:00:13]} 50. Kc3 {[%clk 0:00:07]}  Rb8 {[%clk 0:00:13]} 51. Kb4 {[%clk 0:00:07]}  Kd4 {[%clk 0:00:13]} 52. Rd6 {[%clk 0:00:06]}  Rf8 {[%clk 0:00:12]} 53. Bc4 {[%clk 0:00:05]}  Ke4 {[%clk 0:00:10]} 54. Rxd5 {[%clk 0:00:06]}  Rf1 {[%clk 0:00:10]} 55. Rd3 {[%clk 0:00:05]}  Rb1+ {[%clk 0:00:10]} 56. Rb3 {[%clk 0:00:05]}  Rc1 {[%clk 0:00:11]} 57. b7 {[%clk 0:00:05]}  Kd4 {[%clk 0:00:11]} 58. Bb5 {[%clk 0:00:04]} 1-0


[Site "https://www.chess.com"]

[Event "Titled Tuesday Blitz May 10 Late 2022"]
[White "Roberson, Peter T"]
[Black "Bazeev, German"]
[WhiteFideId "412384"]
[BlackFideId "24119350"]
[WhiteElo "2346"]
[BlackElo "2493"]
[Result "1-0"]
[Round "04"]
[TimeControl "180+1"]
[Date "2022.05.10"]
[WhiteClock "0:00:07"]
[BlackClock "0:00:03"]

1. e4 {[%clk 0:03:00]}  c5 {[%clk 0:02:58]} 2. Be2 {[%clk 0:03:01]}  g6 {[%clk 0:02:57]} 3. f4 {[%clk 0:03:01]}  Bg7 {[%clk 0:02:56]} 4. Nf3 {[%clk 0:03:01]}  d5 {[%clk 0:02:56]} 5. d3 {[%clk 0:03:01]}  Nc6 {[%clk 0:02:55]} 6. O-O {[%clk 0:03:01]}  dxe4 {[%clk 0:02:22]} 7. dxe4 {[%clk 0:03:02]}  Qxd1 {[%clk 0:02:11]} 8. Rxd1 {[%clk 0:03:01]}  Nd4 {[%clk 0:02:08]} 9. Nxd4 {[%clk 0:02:53]}  cxd4 {[%clk 0:01:55]} 10. e5 {[%clk 0:02:45]}  f6 {[%clk 0:01:49]} 11. Bb5+ {[%clk 0:02:38]}  Kf7 {[%clk 0:01:46]} 12. exf6 {[%clk 0:02:08]}  Bxf6 {[%clk 0:01:45]} 13. Nd2 {[%clk 0:02:02]}  Bf5 {[%clk 0:01:44]} 14. Nf3 {[%clk 0:01:43]}  Bxc2 {[%clk 0:01:38]} 15. Rd2 {[%clk 0:01:43]}  Rc8 {[%clk 0:01:09]} 16. Nxd4 {[%clk 0:01:41]}  Be4 {[%clk 0:00:42]} 17. Bd7 {[%clk 0:01:32]}  Nh6 {[%clk 0:00:24]} 18. Be6+ {[%clk 0:01:26]}  Kg7 {[%clk 0:00:24]} 19. Bxc8 {[%clk 0:01:27]}  Rxc8 {[%clk 0:00:24]} 20. b3 {[%clk 0:01:19]}  Nf5 {[%clk 0:00:24]} 21. Nxf5+ {[%clk 0:01:19]}  gxf5 {[%clk 0:00:23]} 22. Bb2 {[%clk 0:01:20]}  Bxb2 {[%clk 0:00:19]} 23. Rxb2 {[%clk 0:01:21]}  Rd8 {[%clk 0:00:18]} 24. Kf2 {[%clk 0:01:18]}  h5 {[%clk 0:00:18]} 25. Ke3 {[%clk 0:01:17]}  Kf6 {[%clk 0:00:18]} 26. Rd2 {[%clk 0:01:15]}  Rc8 {[%clk 0:00:18]} 27. g3 {[%clk 0:01:11]}  h4 {[%clk 0:00:18]} 28. Rg1 {[%clk 0:01:06]}  h3 {[%clk 0:00:17]} 29. Rgd1 {[%clk 0:01:03]}  Rc3+ {[%clk 0:00:17]} 30. Kf2 {[%clk 0:01:02]}  Rf3+ {[%clk 0:00:15]} 31. Ke2 {[%clk 0:01:02]}  Rc3 {[%clk 0:00:16]} 32. Re1 {[%clk 0:00:54]}  Bf3+ {[%clk 0:00:14]} 33. Kf2 {[%clk 0:00:55]}  Be4 {[%clk 0:00:14]} 34. Rd8 {[%clk 0:00:53]}  e6 {[%clk 0:00:11]} 35. Rh8 {[%clk 0:00:50]}  a5 {[%clk 0:00:06]} 36. Rxh3 {[%clk 0:00:49]}  a4 {[%clk 0:00:06]} 37. Rh6+ {[%clk 0:00:46]}  Kf7 {[%clk 0:00:06]} 38. bxa4 {[%clk 0:00:44]}  Rf3+ {[%clk 0:00:07]} 39. Ke2 {[%clk 0:00:44]}  Ra3 {[%clk 0:00:08]} 40. Rc1 {[%clk 0:00:30]}  Rxa2+ {[%clk 0:00:08]} 41. Ke3 {[%clk 0:00:26]}  Ra3+ {[%clk 0:00:08]} 42. Kd4 {[%clk 0:00:27]}  Bc6 {[%clk 0:00:09]} 43. Ke5 {[%clk 0:00:20]}  Re3+ {[%clk 0:00:09]} 44. Kd6 {[%clk 0:00:20]}  Rd3+ {[%clk 0:00:09]} 45. Kc7 {[%clk 0:00:20]}  Rd7+ {[%clk 0:00:09]} 46. Kb6 {[%clk 0:00:20]}  Rd3 {[%clk 0:00:08]} 47. a5 {[%clk 0:00:19]}  Rb3+ {[%clk 0:00:08]} 48. Kc7 {[%clk 0:00:19]}  Ra3 {[%clk 0:00:08]} 49. Rc5 {[%clk 0:00:11]}  Be4 {[%clk 0:00:06]} 50. Kb6 {[%clk 0:00:10]}  Rb3+ {[%clk 0:00:05]} 51. Rb5 {[%clk 0:00:10]}  Rc3 {[%clk 0:00:06]} 52. Rh7+ {[%clk 0:00:10]}  Kf6 {[%clk 0:00:06]} 53. Rxb7 {[%clk 0:00:11]}  Rc6+ {[%clk 0:00:05]} 54. Ka7 {[%clk 0:00:11]}  Rc2 {[%clk 0:00:06]} 55. Rh7 {[%clk 0:00:10]}  Bd3 {[%clk 0:00:04]} 56. Rb6 {[%clk 0:00:10]}  Ra2 {[%clk 0:00:03]} 57. a6 {[%clk 0:00:10]}  Be4 {[%clk 0:00:03]} 58. Rh6+ {[%clk 0:00:07]} 1-0


[Site "https://www.chess.com"]